fUST/lending_fUST_20250925
["ID","MTS","AMOUNT","RATE_DAILY","PERIOD"]
[387664449,1758802012813,-480.0,0.00019344,2]
[387664450,1758802012841,-311.85054134,0.00019344,2]
[387664451,1758802012870,-480.0,0.00019344,2]
[387664452,1758802012899,-234.42950866,0.00019344,2]
[387664453,1758802012928,-480.0,0.00019344,2]
[387664454,1758802012956,-480.0,0.00019344,2]
[387664455,1758802022612,-480.0,0.00019343,2]
[387664456,1758802022641,-517.75355587,0.00019343,2]
[387664457,1758802022670,-500.0,0.00019344,2]
[387664458,1758802022699,-500.0,0.00019344,2]
[387664459,1758802022729,-485.71535952,0.00019344,2]
[387664460,1758802022758,-556.73429903,0.00019344,2]
[387664461,1758802022787,-480.0,0.00019344,2]
[387664462,1758802022816,-480.0,0.00019344,2]
[387664463,1758802022843,-185.52765461,0.00019344,2]
[387664464,1758802022875,-480.0,0.00019344,2]
[387664465,1758802022903,-188.54826194,0.00019344,2]
[387664466,1758802032645,-161.79814984,0.00019245,2]
[387664467,1758802032676,-480.0,0.00019343,2]
[387664468,1758802032703,-291.45173806,0.00019344,2]
[387664469,1758802032729,-480.0,0.00019344,2]
[387664470,1758802032757,-480.0,0.00019344,2]
[387664471,1758802032787,-540.0,0.00019344,2]
[387664472,1758802032817,-480.0,0.00019344,2]
[387664473,1758802032846,-480.0,0.00019344,2]
[387664474,1758802032875,-480.0,0.00019344,2]
[387664475,1758802033062,480.0,0.00019344,2]
[387664476,1758802033275,220.74053625,0.00019344,2]
[387664477,1758802034028,489.70005109,0.00019344,2]
[387664478,1758802035422,488.31688451,0.00019344,2]
[387664479,1758802035901,469.70005109,0.00019344,2]
[387664480,1758802036967,-418.74652553,0.00019345,2]
[387664481,1758802038262,105.05270126,0.00019344,2]
[387664487,1758802080638,155.72,0.00015984,2]
[387664488,1758802080985,155.71,0.00015984,2]
[387664490,1758802117875,-1890.13424349,0.00019273,2]
[387664491,1758802117907,-480.0,0.00019343,2]
[387664492,1758802117937,-480.0,0.00019343,2]
[387664493,1758802117966,-480.0,0.00019343,2]
[387664494,1758802117996,-480.0,0.00019343,2]
[387664495,1758802118025,-399.82906088,0.00019344,2]
[387664496,1758802118053,-380.08339126,0.00019344,2]
[387664498,1758802127749,-819.91660874,0.00019344,2]
[387664499,1758802127778,-480.0,0.00019344,2]
[387664500,1758802127808,-500.0,0.00019344,2]
[387664501,1758802127839,-500.0,0.00019344,2]
[387664502,1758802127868,-480.0,0.00019344,2]
[387664503,1758802127897,-480.0,0.00019344,2]
[387664504,1758802127928,-480.0,0.00019344,2]
[387664505,1758802127957,-480.0,0.00019344,2]
[387664506,1758802128085,-483.67591309,0.00019344,2]
[387664507,1758802128118,-112.82495634,0.00019344,2]
[387664561,1758802232947,-358.95344586,0.00019273,2]
[387664563,1758802232961,-83.3614899,0.00019273,2]
[387664565,1758802232972,-180.0,0.00019342,2]
[387664567,1758802232983,-300.0,0.00019342,2]
[387664570,1758802232994,-300.0,0.00019342,2]
[387664572,1758802233005,-84.63174764,0.00019342,2]
[387664575,1758802233027,-451.04436464,0.00019342,2]
[387664578,1758802233050,-476.32388772,0.00019342,2]
[387664581,1758802233061,-480.0,0.00019343,2]
[387664583,1758802233074,-480.0,0.00019343,2]
[387664585,1758802233085,-143.66828809,0.00019343,2]
[387664666,1758802238805,-336.33171191,0.00019343,2]
[387664667,1758802238816,-496.66824169,0.00019343,2]
[387664668,1758802238859,-22.80897597,0.00019343,2]
[387664669,1758802238869,-480.0,0.00019343,2]
[387664670,1758802238880,-499.68031207,0.00019343,2]
[387664671,1758802238890,-480.0,0.00019343,2]
[387664672,1758802238900,-500.0,0.00019343,2]
[387664673,1758802238909,-333.55340129,0.00019343,2]
[387664674,1758802238919,-188.91835805,0.00019343,2]
[387664675,1758802238929,-480.0,0.00019343,2]
[387664676,1758802238939,-367.17504366,0.00019344,2]
[387664677,1758802238949,-480.0,0.00019344,2]
[387664678,1758802238959,-498.55067008,0.00019344,2]
[387664679,1758802238969,-480.0,0.00019344,2]
[387664680,1758802238979,-485.42028149,0.00019344,2]
[387664681,1758802238988,-485.51935259,0.00019344,2]
[387664682,1758802238998,-471.05675966,0.00019344,2]
[387664683,1758802239007,-474.2464124,0.00019344,2]
[387664684,1758802239017,-480.0,0.00019344,2]
[387664685,1758802239026,-230.74275739,0.00019344,2]
[387664686,1758802239036,-489.18509792,0.00019344,2]
[387664687,1758802239045,-500.0,0.00019344,2]
[387664688,1758802239055,-480.0,0.00019344,2]
[387664689,1758802239064,-480.0,0.00019344,2]
[387664690,1758802239075,-486.58376091,0.00019344,2]
[387664691,1758802239085,-482.5318543,0.00019344,2]
[387664692,1758802239095,-480.0,0.00019344,2]
[387664693,1758802239104,-480.0,0.00019344,2]
[387664694,1758802239113,-480.0,0.00019344,2]
[387664695,1758802239123,-480.0,0.00019344,2]
[387664696,1758802239133,-480.0,0.00019344,2]
[387664697,1758802239142,-491.89670702,0.00019344,2]
[387664698,1758802239151,-480.0,0.00019344,2]
[387664699,1758802239162,-480.0,0.00019344,2]
[387664700,1758802239171,-481.3297168,0.00019344,2]
[387664701,1758802239181,-480.0,0.00019344,2]
[387664702,1758802239191,-480.0,0.00019344,2]
[387664703,1758802239201,-480.0,0.00019344,2]
[387664704,1758802239210,-480.0,0.00019344,2]
[387664705,1758802239220,-462.45334388,0.00019344,2]
[387664706,1758802239229,-480.0,0.00019344,2]
[387664707,1758802239239,-480.0,0.00019344,2]
[387664708,1758802239248,-480.0,0.00019344,2]
[387664709,1758802239258,-480.0,0.00019344,2]
[387664710,1758802239267,-480.0,0.00019344,2]
[387664711,1758802239277,-480.0,0.00019344,2]
[387664712,1758802239288,-480.0,0.00019344,2]
[387664713,1758802239300,-196.52495836,0.00019344,2]
[387664714,1758802239310,-480.0,0.00019344,2]
[387664715,1758802239320,-157.08285119,0.00019344,2]
[387664716,1758802239331,-488.50562373,0.00019344,2]
[387664717,1758802239341,-483.0824462,0.00019344,2]
[387664718,1758802239350,-480.0,0.00019344,2]
[387664719,1758802239362,-500.0,0.00019344,2]
[387664720,1758802239371,-500.0,0.00019344,2]
[387664721,1758802239380,-486.12380103,0.00019344,2]
[387664722,1758802239390,-480.0,0.00019344,2]
[387664723,1758802239399,-480.0,0.00019344,2]
[387664724,1758802239409,-480.0,0.00019344,2]
[387664725,1758802239418,-493.37713343,0.00019344,2]
[387664726,1758802239427,-483.4464896,0.00019344,2]
[387664727,1758802239437,-487.87615042,0.00019344,2]
[387664728,1758802239446,-480.0,0.00019344,2]
[387664729,1758802239456,-480.0,0.00019344,2]
[387664730,1758802239465,-579.18423449,0.00019344,2]
[387664731,1758802239474,-480.0,0.00019344,2]
[387664732,1758802239483,-412.98835579,0.00019344,2]
[387664733,1758802239492,-480.0,0.00019344,2]
[387664734,1758802239501,-480.0,0.00019344,2]
[387664735,1758802239511,-480.0,0.00019344,2]
[387664736,1758802239520,-480.0,0.00019344,2]
[387664737,1758802239530,-480.0,0.00019344,2]
[387664738,1758802239539,-483.20154053,0.00019344,2]
[387664739,1758802239549,-480.0,0.00019344,2]
[387664740,1758802239558,-480.0,0.00019344,2]
[387664741,1758802239568,-480.0,0.00019344,2]
[387664742,1758802239577,-452.12122265,0.00019344,2]
[387664743,1758802239589,-483.3122967,0.00019344,2]
[387664744,1758802239599,-480.0,0.00019344,2]
[387664745,1758802239609,-494.04621083,0.00019344,2]
[387664746,1758802239619,-480.0,0.00019344,2]
[387664747,1758802239628,-480.0,0.00019344,2]
[387664748,1758802239638,-480.0,0.00019344,2]
[387664749,1758802239647,-480.0,0.00019344,2]
[387664750,1758802239657,-480.0,0.00019344,2]
[387664751,1758802239666,-480.0,0.00019344,2]
[387664752,1758802239675,-480.0,0.00019344,2]
[387664753,1758802239684,-483.30450113,0.00019344,2]
[387664754,1758802239693,-500.0,0.00019345,2]
[387664755,1758802239703,-50000.0,0.00019345,2]
[387664756,1758802239712,-480.0,0.00019345,2]
[387664757,1758802239722,-480.0,0.00019345,2]
[387664758,1758802239732,-500.0,0.00019345,2]
[387664759,1758802239742,-480.0,0.00019345,2]
[387664760,1758802239752,-486.81290291,0.00019345,2]
[387664761,1758802239762,-480.0,0.00019345,2]
[387664762,1758802239772,-480.0,0.00019345,2]
[387664763,1758802239782,-480.0,0.00019345,2]
[387664764,1758802239792,-480.0,0.00019345,2]
[387664765,1758802239801,-480.0,0.00019345,2]
[387664766,1758802239811,-582.11728596,0.00019345,2]
[387664767,1758802239821,-480.0,0.00019345,2]
[387664768,1758802239831,-480.0,0.00019345,2]
[387664769,1758802239840,-480.0,0.00019345,2]
[387664770,1758802239849,-480.0,0.00019345,2]
[387664771,1758802239859,-480.0,0.00019345,2]
[387664772,1758802239868,-518.66,0.00019345,2]
[387664773,1758802239878,-480.0,0.00019345,2]
[387664774,1758802239887,-480.0,0.00019345,2]
[387664775,1758802239897,-480.0,0.00019345,2]
[387664776,1758802239906,-480.0,0.00019345,2]
[387664777,1758802239915,-480.0,0.00019345,2]
[387664778,1758802239925,-480.0,0.00019345,2]
[387664779,1758802239935,-480.0,0.00019345,2]
[387664780,1758802239945,-481.15366163,0.00019345,2]
[387664781,1758802239955,-274.36901406,0.00019345,2]
[387664782,1758802239964,-480.0,0.00019345,2]
[387664783,1758802239974,-480.0,0.00019345,2]
[387664784,1758802239983,-480.0,0.00019345,2]
[387664785,1758802239992,-477.93431732,0.00019345,2]
[387664786,1758802240001,-480.0,0.00019345,2]
[387664787,1758802240010,-484.75133298,0.00019345,2]
[387664788,1758802240020,-480.0,0.00019345,2]
[387664789,1758802240029,-480.0,0.00019345,2]
[387664790,1758802240038,-304.27857474,0.00019345,2]
[387664791,1758802240048,-486.46142387,0.00019345,2]
[387664792,1758802240057,-480.66723673,0.00019345,2]
[387664793,1758802240066,-480.0,0.00019345,2]
[387664794,1758802240076,-480.0,0.00019345,2]
[387664795,1758802240085,-480.0,0.00019345,2]
[387664796,1758802240094,-480.0,0.00019345,2]
[387664797,1758802240103,-480.0,0.00019345,2]
[387664798,1758802240113,-480.0,0.00019345,2]
[387664800,1758802240122,-480.0,0.00019345,2]
[387664801,1758802240131,-480.0,0.00019345,2]
[387664802,1758802240140,-480.0,0.00019345,2]
[387664803,1758802240148,-177.995743,0.00019345,2]
[387664804,1758802240158,-1185.59,0.00019345,2]
[387664805,1758802240167,-1185.59,0.00019345,2]
[387664806,1758802240176,-1185.59,0.00019345,2]
[387664807,1758802240185,-1185.59,0.00019345,2]
[387664808,1758802240194,-1185.59,0.00019345,2]
[387664809,1758802240203,-1185.59,0.00019345,2]
[387664810,1758802240213,-480.0,0.00019345,2]
[387664812,1758802240222,-480.0,0.00019345,2]
[387664813,1758802240232,-480.0,0.00019345,2]
[387664815,1758802240241,-480.0,0.00019345,2]
[387664816,1758802240250,-2000.0,0.00019345,2]
[387664817,1758802240259,-2000.0,0.00019345,2]
[387664818,1758802240268,-2000.0,0.00019345,2]
[387664819,1758802240277,-2000.0,0.00019345,2]
[387664820,1758802240287,-2000.0,0.00019345,2]
[387664821,1758802240299,-500.0,0.00019345,2]
[387664822,1758802240309,-480.0,0.00019345,2]
[387664823,1758802240317,-480.0,0.00019345,2]
[387664824,1758802240327,-480.0,0.00019345,2]
[387664825,1758802240337,-480.0,0.00019346,2]
[387664826,1758802240346,-480.0,0.00019346,2]
[387664827,1758802240355,-480.0,0.00019346,2]
[387664828,1758802240367,-480.0,0.00019346,2]
[387664829,1758802240376,-486.81246197,0.00019346,2]
[387664830,1758802240385,-488.77328849,0.00019346,2]
[387664831,1758802240394,-484.0659597,0.00019346,2]
[387664832,1758802240403,-575.48618672,0.00019346,2]
[387664833,1758802240412,-480.0,0.00019346,2]
[387664834,1758802240421,-1185.59,0.00019346,2]
[387664835,1758802240431,-485.48797454,0.00019346,2]
[387664836,1758802240440,-480.0,0.00019346,2]
[387664837,1758802240450,-1071.26,0.00019346,2]
[387664838,1758802240459,-480.0,0.00019346,2]
[387664839,1758802240469,-1185.59,0.00019348,2]
[387664840,1758802240479,-151.0,0.00019349,2]
[387664841,1758802240488,-155.81474067,0.00019349,2]
[387664842,1758802240498,-152.22216253,0.00019349,2]
[387664843,1758802240508,-151.0,0.00019349,2]
[387664844,1758802240518,-151.0,0.00019349,2]
[387664845,1758802240528,-151.0,0.00019349,2]
[387664846,1758802240538,-500.0,0.00019349,2]
[387664847,1758802240548,-151.0,0.00019349,2]
[387664848,1758802240558,-151.0,0.00019349,2]
[387664849,1758802240568,-151.0,0.00019349,2]
[387664850,1758802240579,-151.0,0.00019349,2]
[387664851,1758802240589,-151.0,0.00019349,2]
[387664852,1758802240598,-246.33756732,0.00019349,2]
[387664853,1758802240608,-151.0,0.00019349,2]
[387664854,1758802240618,-151.0,0.00019349,2]
[387664855,1758802240627,-151.0,0.00019349,2]
[387664856,1758802240637,-151.0,0.00019349,2]
[387664857,1758802240647,-151.0,0.00019349,2]
[387664858,1758802240657,-151.0,0.00019349,2]
[387664859,1758802240666,-151.0,0.00019349,2]
[387664860,1758802240676,-500.0,0.00019349,2]
[387664861,1758802240685,-151.0,0.00019349,2]
[387664862,1758802240694,-1185.59,0.0001935,2]
[387664863,1758802240704,-500.0,0.0001935,2]
[387664864,1758802240714,-500.0,0.0001935,2]
[387664865,1758802240724,-1185.59,0.00019351,2]
[387664866,1758802240734,-1185.59,0.00019351,2]
[387664867,1758802240744,-1185.59,0.00019351,2]
[387664869,1758802240831,-1185.59,0.00019351,2]
[387664870,1758802240858,-1185.59,0.00019351,2]
[387664871,1758802240868,-1185.59,0.00019351,2]
[387664872,1758802240878,-1185.59,0.00019351,2]
[387664873,1758802240888,-1185.59,0.00019351,2]
[387664874,1758802240897,-1185.59,0.00019351,2]
[387664875,1758802240906,-1185.59,0.00019351,2]
[387664876,1758802240915,-1185.59,0.00019351,2]
[387664877,1758802240924,-1185.59,0.00019351,2]
[387664878,1758802240933,-1185.59,0.00019351,2]
[387664879,1758802240941,-1185.59,0.00019351,2]
[387664880,1758802240950,-1185.69102042,0.00019351,2]
[387664881,1758802240959,-500.0,0.00019351,2]
[387664882,1758802240968,-500.0,0.00019351,2]
[387664883,1758802240977,-500.0,0.00019351,2]
[387664884,1758802240986,-500.0,0.00019351,2]
[387664885,1758802240994,-500.0,0.00019351,2]
[387664886,1758802241002,-500.0,0.00019351,2]
[387664887,1758802241011,-500.0,0.00019351,2]
[387664888,1758802241020,-500.0,0.00019351,2]
[387664889,1758802241029,-224.82191932,0.00019351,2]
[387664890,1758802241038,-500.0,0.00019351,2]
[387664891,1758802241046,-500.0,0.00019351,2]
[387664892,1758802241055,-500.0,0.00019351,2]
[387664893,1758802241064,-643.65505069,0.00019351,2]
[387664894,1758802241074,-370000.0,0.00019352,2]
[387664895,1758802241083,-500.0,0.00019373,2]
[387664896,1758802241093,-500.0,0.000194,2]
[387664897,1758802241102,-480.0,0.00019617,2]
[387664898,1758802241111,-480.0,0.00019617,2]
[387664899,1758802241121,-480.0,0.00019617,2]
[387664900,1758802241130,-480.0,0.00019617,2]
[387664901,1758802241140,-480.0,0.00019617,2]
[387664902,1758802241149,-480.0,0.00019618,2]
[387664903,1758802241159,-483.91208513,0.00019618,2]
[387664904,1758802241169,-275.17647232,0.00019618,2]
[387664905,1758802241178,-480.0,0.00019618,2]
[387664906,1758802241187,-480.0,0.00019618,2]
[387664907,1758802241197,-480.0,0.00019618,2]
[387664908,1758802241206,-480.0,0.00019618,2]
[387664909,1758802241216,-486.60595937,0.00019618,2]
[387664910,1758802241226,-500.41549574,0.00019618,2]
[387664911,1758802241235,-412.63670184,0.00019618,2]
[387664912,1758802241245,-335.00843238,0.00019618,2]
[387664913,1758802241254,-480.0,0.00019618,2]
[387664914,1758802241263,-480.0,0.00019618,2]
[387664915,1758802241273,-480.0,0.00019618,2]
[387664916,1758802241282,-527.85392026,0.00019618,2]
[387664917,1758802241295,-528.91727054,0.00019618,2]
[387664918,1758802241303,-480.0,0.00019618,2]
[387664919,1758802241313,-480.0,0.00019618,2]
[387664920,1758802241321,-480.0,0.00019618,2]
[387664921,1758802241330,-480.0,0.00019618,2]
[387664922,1758802241339,-480.0,0.00019618,2]
[387664923,1758802241347,-2147.67,0.00019618,2]
[387664924,1758802241355,-480.0,0.00019618,2]
[387664925,1758802241364,-480.0,0.00019618,2]
[387664926,1758802241373,-480.0,0.00019618,2]
[387664927,1758802241382,-480.0,0.00019618,2]
[387664928,1758802241391,-480.0,0.00019618,2]
[387664929,1758802241399,-480.0,0.00019618,2]
[387664930,1758802241408,-615.70177796,0.00019618,2]
[387664931,1758802241416,-480.0,0.00019618,2]
[387664932,1758802241425,-445.59443521,0.00019618,2]
[387664933,1758802241435,-480.0,0.00019618,2]
[387664934,1758802241444,-460.0,0.00019618,2]
[387664935,1758802241453,-480.0,0.00019618,2]
[387664936,1758802241464,-244.43148459,0.00019618,2]
[387664937,1758802241474,-480.0,0.00019618,2]
[387664938,1758802241484,-480.0,0.00019618,2]
[387664939,1758802241494,-297.34227996,0.00019618,2]
[387664940,1758802241503,-480.0,0.00019618,2]
[387664941,1758802241513,-480.0,0.00019618,2]
[387664942,1758802241522,-480.0,0.00019618,2]
[387664943,1758802241532,-480.0,0.00019618,2]
[387664944,1758802241542,-480.0,0.00019618,2]
[387664945,1758802241551,-480.0,0.00019618,2]
[387664946,1758802241561,-483.44882074,0.00019618,2]
[387664947,1758802241571,-488.99272708,0.00019618,2]
[387664948,1758802241581,-483.67943538,0.00019618,2]
[387664949,1758802241590,-421.69987645,0.00019618,2]
[387664950,1758802241600,-480.0,0.00019618,2]
[387664951,1758802241609,-432.90199192,0.00019618,2]
[387664952,1758802241618,-480.0,0.00019618,2]
[387664953,1758802241628,-480.0,0.00019618,2]
[387664954,1758802241637,-492.79393554,0.00019618,2]
[387664955,1758802241647,-480.0,0.00019618,2]
[387664956,1758802241656,-480.0,0.00019618,2]
[387664957,1758802241665,-480.0,0.00019618,2]
[387664958,1758802241675,-480.0,0.00019618,2]
[387664959,1758802241684,-480.0,0.00019618,2]
[387664960,1758802241694,-480.0,0.00019618,2]
[387664961,1758802241703,-480.0,0.00019618,2]
[387664962,1758802241713,-480.0,0.00019618,2]
[387664963,1758802241722,-480.0,0.00019618,2]
[387664964,1758802241732,-480.0,0.00019618,2]
[387664965,1758802241741,-480.0,0.00019618,2]
[387664966,1758802241751,-480.0,0.00019618,2]
[387664967,1758802241760,-480.0,0.00019618,2]
[387664968,1758802241769,-480.0,0.00019618,2]
[387664969,1758802241778,-480.0,0.00019618,2]
[387664970,1758802241787,-176.76994331,0.00019619,2]
[387664971,1758802241797,-484.37144901,0.00019619,2]
[387664972,1758802241808,-492.02703179,0.00019619,2]
[387664973,1758802241818,-211.39488729,0.00019619,2]
[387664974,1758802241828,-480.0,0.00019619,2]
[387664975,1758802241838,-480.0,0.00019619,2]
[387664976,1758802241847,-480.0,0.00019619,2]
[387664977,1758802241857,-480.0,0.00019619,2]
[387664978,1758802241866,-480.0,0.00019619,2]
[387664979,1758802241876,-480.0,0.00019619,2]
[387664980,1758802241886,-447.76565906,0.00019619,2]
[387664981,1758802241896,-480.0,0.00019619,2]
[387664982,1758802241905,-480.0,0.00019619,2]
[387664983,1758802241915,-480.0,0.00019619,2]
[387664984,1758802241925,-500.0,0.00019619,2]
[387664985,1758802241934,-480.0,0.00019619,2]
[387664986,1758802241945,-482.31105239,0.00019619,2]
[387664987,1758802241954,-480.0,0.00019619,2]
[387664988,1758802241964,-480.0,0.00019619,2]
[387664989,1758802241974,-480.0,0.00019619,2]
[387664990,1758802241983,-480.0,0.00019619,2]
[387664991,1758802241993,-480.0,0.00019619,2]
[387664992,1758802242003,-303.54491338,0.00019619,2]
[387664993,1758802242013,-458.54071435,0.00019619,2]
[387664994,1758802242023,-480.0,0.00019619,2]
[387664995,1758802242032,-518.66,0.00019619,2]
[387664996,1758802242041,-480.0,0.00019619,2]
[387664997,1758802242051,-480.0,0.00019619,2]
[387664998,1758802242060,-492.84269361,0.00019619,2]
[387664999,1758802242069,-480.0,0.00019619,2]
[387665000,1758802242080,-480.0,0.00019619,2]
[387665001,1758802242090,-480.0,0.00019619,2]
[387665002,1758802242099,-480.0,0.00019619,2]
[387665003,1758802242109,-480.0,0.00019619,2]
[387665004,1758802242119,-480.0,0.00019619,2]
[387665005,1758802242129,-480.0,0.00019619,2]
[387665006,1758802242140,-480.0,0.00019619,2]
[387665007,1758802242150,-480.0,0.00019619,2]
[387665008,1758802242159,-480.0,0.00019619,2]
[387665009,1758802242169,-480.0,0.00019619,2]
[387665010,1758802242178,-480.0,0.00019619,2]
[387665011,1758802242187,-494.18546131,0.00019619,2]
[387665012,1758802242196,-484.95030407,0.00019619,2]
[387665013,1758802242205,-470.55694786,0.00019619,2]
[387665014,1758802242214,-482.29688122,0.00019619,2]
[387665015,1758802242225,-590.15892184,0.00019619,2]
[387665016,1758802242236,-480.0,0.00019619,2]
[387665017,1758802242246,-480.0,0.00019619,2]
[387665018,1758802242257,-480.0,0.00019619,2]
[387665019,1758802242267,-480.0,0.00019619,2]
[387665020,1758802242276,-480.0,0.00019619,2]
[387665021,1758802242287,-248.18745539,0.00019619,2]
[387665022,1758802242299,-480.0,0.00019619,2]
[387665023,1758802242310,-474.60994657,0.0001962,2]
[387665024,1758802242323,-480.0,0.0001962,2]
[387665025,1758802242332,-480.0,0.0001962,2]
[387665026,1758802242343,-1071.26,0.0001962,2]
[387665027,1758802242352,-480.0,0.0001962,2]
[387665028,1758802242364,-151.0,0.00019623,2]
[387665029,1758802242374,-151.0,0.00019623,2]
[387665030,1758802242384,-151.0,0.00019623,2]
[387665031,1758802242393,-500.0,0.00019623,2]
[387665032,1758802242403,-151.0,0.00019623,2]
[387665033,1758802242413,-151.0,0.00019623,2]
[387665034,1758802242422,-151.59310519,0.00019623,2]
[387665035,1758802242432,-151.93961096,0.00019623,2]
[387665036,1758802242442,-246.90162727,0.00019623,2]
[387665037,1758802242451,-247.14406961,0.00019623,2]
[387665038,1758802242460,-151.0,0.00019623,2]
[387665039,1758802242470,-151.0,0.00019623,2]
[387665040,1758802242479,-500.0,0.00019623,2]
[387665041,1758802242489,-151.0,0.00019623,2]
[387665042,1758802242498,-500.0,0.00019673,2]
[387665043,1758802242508,-500.0,0.00019673,2]
[387665044,1758802242517,-500.0,0.00019673,2]
[387665045,1758802242527,-500.0,0.00019673,2]
[387665046,1758802242536,-500.0,0.00019673,2]
[387665047,1758802242546,-500.0,0.00019673,2]
[387665048,1758802242555,-150.0,0.00019826,2]
[387665049,1758802242564,-501.46,0.00019873,2]
[387665050,1758802242574,-225.23,0.00019873,2]
[387665051,1758802242584,-480.0,0.00019891,2]
[387665052,1758802242593,-480.0,0.00019891,2]
[387665053,1758802242603,-263.42418354,0.00019891,2]
[387665054,1758802242612,-493.87793234,0.00019891,2]
[387665055,1758802242622,-220.28230118,0.00019891,2]
[387665056,1758802242631,-480.0,0.00019892,2]
[387665057,1758802242641,-480.0,0.00019892,2]
[387665058,1758802242650,-480.0,0.00019892,2]
[387665059,1758802242660,-388.39282493,0.00019892,2]
[387665060,1758802242669,-480.0,0.00019892,2]
[387665061,1758802242679,-480.0,0.00019892,2]
[387665062,1758802242688,-480.0,0.00019892,2]
[387665063,1758802242698,-2147.67,0.00019892,2]
[387665064,1758802242707,-480.0,0.00019892,2]
[387665065,1758802242716,-480.0,0.00019892,2]
[387665066,1758802242726,-480.0,0.00019892,2]
[387665067,1758802242736,-480.0,0.00019892,2]
[387665068,1758802242746,-480.0,0.00019892,2]
[387665069,1758802242756,-480.0,0.00019892,2]
[387665070,1758802242765,-480.0,0.00019892,2]
[387665071,1758802242775,-480.0,0.00019892,2]
[387665072,1758802242784,-480.0,0.00019892,2]
[387665073,1758802242794,-480.0,0.00019892,2]
[387665074,1758802242803,-480.0,0.00019892,2]
[387665075,1758802242813,-480.0,0.00019892,2]
[387665076,1758802242823,-480.0,0.00019892,2]
[387665077,1758802242833,-480.0,0.00019892,2]
[387665078,1758802242843,-480.0,0.00019892,2]
[387665079,1758802242854,-450.04138659,0.00019892,2]
[387665080,1758802242863,-449.94761339,0.00019892,2]
[387665081,1758802242873,-287.43382295,0.00019892,2]
[387665082,1758802242883,-480.0,0.00019892,2]
[387665083,1758802242893,-480.0,0.00019892,2]
[387665084,1758802242903,-480.0,0.00019892,2]
[387665085,1758802242912,-488.0801897,0.00019892,2]
[387665086,1758802242924,-249.31148458,0.00019892,2]
[387665087,1758802242935,-252.3971773,0.00019892,2]
[387665088,1758802242945,-492.38334792,0.00019893,2]
[387665089,1758802242954,-480.0,0.00019893,2]
[387665090,1758802242964,-480.0,0.00019893,2]
[387665091,1758802242974,-480.0,0.00019893,2]
[387665092,1758802242984,-480.0,0.00019893,2]
[387665093,1758802242994,-480.0,0.00019893,2]
[387665094,1758802243003,-198.81128936,0.00019893,2]
[387665095,1758802243013,-460.18280044,0.00019893,2]
[387665097,1758802243107,-480.0,0.00019893,2]
[387665098,1758802243118,-487.8373923,0.00019893,2]
[387665099,1758802243127,-480.0,0.00019893,2]
[387665100,1758802243137,-480.0,0.00019893,2]
[387665101,1758802243147,-474.92346152,0.00019893,2]
[387665102,1758802243156,-480.0,0.00019893,2]
[387665103,1758802243166,-485.75844099,0.00019893,2]
[387665104,1758802243175,-480.0,0.00019893,2]
[387665105,1758802243184,-518.66,0.00019893,2]
[387665106,1758802243194,-480.0,0.00019893,2]
[387665107,1758802243204,-480.0,0.00019893,2]